[Event "Romanian Championship Open 2025"]
[Site "Craiova"]
[Date "2025.02.15"]
[Round "1.12"]
[White "Filip, Lucian-Ioan"]
[Black "Vasile, Matei"]
[Result "1-0"]
[Annotator "ChessBase"]
[ECO "E04"]
[WhiteElo "2328"]
[BlackElo "1993"]
[PlyCount "69"]
[EventDate "2025.02.12"]
[EventCountry "ROU"]
[SourceTitle "playchess.com"]
[Source "ChessBase"]
[SourceQuality "1"]
[TimeControl "40/5400+30:900+30"]

1. d4 {[%emt 0:00:03]} d5 {[%emt 0:00:04]} 2. c4 {[%emt 0:00:02]} e6 {[%emt 0:00:04]} 3. Nf3 {[%emt 0:00:03]} Nf6 {[%emt 0:00:03]} 4. g3 {[%emt 0:00:04]} dxc4 {[%emt 0:00:04]} 5. Bg2 {[%emt 0:00:04]} c5 {[%emt 0:00:03]} 6. O-O {[%emt 0:00:13]} Nc6 {[%emt 0:00:04]} 7. Ne5 {[%emt 0:01:43]} Bd7 {[%emt 0:05:37]} 8. Nxc4 {[%emt 0:00:34]} cxd4 {[%emt 0:04:39]} 9. Bf4 {[%emt 0:00:35]} Be7 {[%emt 0:00:37]} 10. Nd6+ {[%emt 0:00:42]} Kf8 {[%emt 0:00:09]} 11. Nxb7 {[%emt 0:00:20]} Qb6 {[%emt 0:00:35]} 12. Nd6 {[%emt 0:00:06]} Nh5 {[%emt 0:08:51]} 13. Nc4 {[%emt 0:04:00]} Qc5 {[%emt 0:01:47]} 14. Ne5 {[%emt 0:05:31]} Be8 {[%emt 0:06:31]} 15. Bxc6 {[%emt 0:41:43]} Bxc6 {[%emt 0:00:13]} 16. Nxc6 {[%emt 0:00:03]} Qxc6 {[%emt 0:00:07]} 17. Qxd4 {[%emt 0:07:44]} Rd8 {[%emt 0:01:59]} 18. Qe5 {[%emt 0:04:59]} Nxf4 {[%emt 0:00:39]} 19. Qxf4 {[%emt 0:00:08]} Qc2 {[%emt 0:01:54]} 20. Nc3 {[%emt 0:03:40]} Qxb2 {[%emt 0:01:14]} 21. Qf3 {[%emt 0:09:47]} g6 {[%emt 0:16:43]} 22. Rab1 {[%emt 0:02:06]} Qa3 {[%emt 0:00:46]} 23. Rb3 {[%emt 0:02:06]} Qc5 {[%emt 0:01:11]} 24. Rb7 {[%emt 0:03:54]} a5 {[%emt 0:03:39]} 25. Ne4 {[%emt 0:03:44]} Qe5 {[%emt 0:07:04]} 26. Rc1 {[%emt 0:04:24]} f5 {[%emt 0:04:35]} 27. Rcc7 {[%emt 0:00:45]} Re8 {[%emt 0:00:04]} 28. Nd2 {[%emt 0:04:12]} h5 {[%emt 0:01:35]} 29. h4 {[%emt 0:01:08]} Qa1+ {[%emt 0:02:59]} 30. Kg2 {[%emt 0:00:23]} g5 {[%emt 0:01:35]} 31. Qe3 {[%emt 0:00:32]} Qf6 {[%emt 0:08:02]} 32. hxg5 {[%emt 0:00:28]} Qg6 {[%emt 0:00:07]} 33. Nf3 {[%emt 0:00:14]} Rg8 {[%emt 0:00:54]} 34. Nd4 {[%emt 0:00:51]} Bxg5 {[%emt 0:01:05]} 35. Qxg5 {[%emt 0:00:05]} 1-0

[Event "Romanian Championship Open 2025"]
[Site "Craiova"]
[Date "2025.02.15"]
[Round "1.13"]
[White "Armenciu, Bogdan-Ovidiu"]
[Black "Filip, Andrei"]
[Result "0-1"]
[Annotator "ChessBase"]
[ECO "B41"]
[WhiteElo "1950"]
[BlackElo "2320"]
[PlyCount "84"]
[EventDate "2025.02.12"]
[EventCountry "ROU"]
[SourceTitle "playchess.com"]
[Source "ChessBase"]
[SourceQuality "1"]
[TimeControl "40/5400+30:900+30"]

1. e4 {[%emt 0:00:06]} c5 {[%emt 0:00:08]} 2. Nf3 {[%emt 0:00:05]} e6 {[%emt 0:00:04]} 3. d4 {[%emt 0:00:17]} cxd4 {[%emt 0:00:05]} 4. Nxd4 {[%emt 0:00:04]} a6 {[%emt 0:00:07]} 5. c4 {[%emt 0:00:42]} Nf6 {[%emt 0:00:42]} 6. Nc3 {[%emt 0:00:11]} Qc7 {[%emt 0:00:23]} 7. a3 {[%emt 0:01:09]} Nc6 {[%emt 0:02:11]} 8. Be3 {[%emt 0:03:58]} Bd6 {[%emt 0:02:48]} 9. g3 {[%emt 0:04:06]} O-O {[%emt 0:01:31]} 10. Bg2 {[%emt 0:01:00]} Ne5 {[%emt 0:12:04]} 11. b3 {[%emt 0:27:41]} Neg4 {[%emt 0:03:24]} 12. Bg5 {[%emt 0:05:25]} Bc5 {[%emt 0:12:04]} 13. O-O {[%emt 0:12:54]} Qe5 {[%emt 0:03:25]} 14. Bxf6 {[%emt 0:01:24]} Qxf6 {[%emt 0:01:14]} 15. Nce2 {[%emt 0:03:06]} d6 {[%emt 0:16:23]} 16. b4 {[%emt 0:04:25]} Ba7 {[%emt 0:01:15]} 17. h3 {[%emt 0:14:45]} Ne5 {[%emt 0:00:12]} 18. Rc1 {[%emt 0:00:05]} Bd7 {[%emt 0:03:20]} 19. Kh2 {[%emt 0:09:07]} Rac8 {[%emt 0:03:23]} 20. Qb3 {[%emt 0:05:36]} Qh6 {[%emt 0:04:49]} 21. Rfd1 {[%emt 0:01:09]} Rc7 {[%emt 0:03:09]} 22. f4 {[%emt 0:02:46]} Ng4+ {[%emt 0:02:06]} 23. Kg1 {[%emt 0:00:01]} e5 {[%emt 0:04:07]} 24. hxg4 {[%emt 0:00:01]} Bxg4 {[%emt 0:00:25]} 25. Bf3 {[%emt 0:01:31]} Bh3 {[%emt 0:07:13]} 26. fxe5 {[%emt 0:00:49]} dxe5 {[%emt 0:00:19]} 27. c5 {[%emt 0:00:01]} exd4 {[%emt 0:00:21]} 28. Rxd4 {[%emt 0:01:17]} b6 {[%emt 0:01:50]} 29. Rd6 {[%emt 0:00:36]} Be6 {[%emt 0:00:52]} 30. Qc3 {[%emt 0:00:38]} bxc5 {[%emt 0:00:07]} 31. b5 {[%emt 0:00:32]} axb5 {[%emt 0:00:16]} 32. Nf4 {[%emt 0:00:15]} c4+ {[%emt 0:00:31]} 33. Kg2 {[%emt 0:00:26]} Bh3+ {[%emt 0:00:25]} 34. Nxh3 {[%emt 0:00:01]} Qxd6 {[%emt 0:00:07]} 35. Rd1 {[%emt 0:00:12]} Qb6 {[%emt 0:02:30]} 36. e5 {[%emt 0:01:08]} Rcc8 {[%emt 0:03:27]} 37. Bd5 {[%emt 0:00:38]} Qe3 {[%emt 0:03:36]} 38. Qxe3 {[%emt 0:00:01]} Bxe3 {[%emt 0:00:07]} 39. e6 {[%emt 0:00:17]} c3 {[%emt 0:00:23]} 40. exf7+ {[%emt 0:00:00]} Kh8 {[%emt 0:00:00]} 41. Nf4 {[%emt 0:01:59]} c2 {[%emt 0:01:23]} 42. Rh1 {[%emt 0:03:59]} Bxf4 {[%emt 0:00:06]} 0-1

[Event "Romanian Championship Open 2025"]
[Site "Craiova"]
[Date "2025.02.15"]
[Round "1.14"]
[White "Nedelcu, Teodor-Cosmin"]
[Black "Berechet, Otiliu-Octavian"]
[Result "1/2-1/2"]
[Annotator "ChessBase"]
[ECO "D40"]
[WhiteElo "2320"]
[BlackElo "1946"]
[PlyCount "76"]
[EventDate "2025.02.12"]
[EventCountry "ROU"]
[SourceTitle "playchess.com"]
[Source "ChessBase"]
[SourceQuality "1"]
[TimeControl "40/5400+30:900+30"]

1. d4 {[%emt 0:00:04]} d5 {[%emt 0:00:53]} 2. c4 {[%emt 0:00:05]} e6 {[%emt 0:00:30]} 3. Nc3 {[%emt 0:00:26]} c5 {[%emt 0:01:36]} 4. e3 {[%emt 0:00:53]} Nf6 {[%emt 0:00:31]} 5. Nf3 {[%emt 0:01:13]} Nc6 {[%emt 0:00:33]} 6. a3 {[%emt 0:03:26]} a6 {[%emt 0:00:26]} 7. dxc5 {[%emt 0:14:51]} Bxc5 {[%emt 0:00:24]} 8. b4 {[%emt 0:00:55]} Ba7 {[%emt 0:00:51]} 9. Bb2 {[%emt 0:01:11]} O-O {[%emt 0:00:23]} 10. h3 {[%emt 0:09:14]} dxc4 {[%emt 0:00:26]} 11. Bxc4 {[%emt 0:00:14]} b5 {[%emt 0:00:20]} 12. Bb3 {[%emt 0:00:27]} Qxd1+ {[%emt 0:01:01]} 13. Rxd1 {[%emt 0:00:06]} Bb7 {[%emt 0:00:27]} 14. O-O {[%emt 0:02:08]} Rfd8 {[%emt 0:00:13]} 15. Ne2 {[%emt 0:04:37]} Rxd1 {[%emt 0:00:45]} 16. Rxd1 {[%emt 0:00:07]} Rd8 {[%emt 0:00:38]} 17. Rc1 {[%emt 0:01:57]} Rc8 {[%emt 0:05:12]} 18. Nf4 {[%emt 0:05:27]} Kf8 {[%emt 0:03:28]} 19. Ng5 {[%emt 0:03:18]} Nd8 {[%emt 0:02:16]} 20. Rd1 {[%emt 0:10:57]} h6 {[%emt 0:00:51]} 21. Bxf6 {[%emt 0:16:45]} gxf6 {[%emt 0:00:54]} 22. Nxf7 {[%emt 0:14:08]} Kxf7 {[%emt 0:00:37]} 23. Bxe6+ {[%emt 0:02:27]} Nxe6 {[%emt 0:01:55]} 24. Rd7+ {[%emt 0:00:48]} Ke8 {[%emt 0:01:51]} 25. Rxb7 {[%emt 0:00:06]} Nxf4 {[%emt 0:13:50]} 26. Rxa7 {[%emt 0:04:27]} Nd3 {[%emt 0:02:57]} 27. Rxa6 {[%emt 0:00:33]} Rc1+ {[%emt 0:00:03]} 28. Kh2 {[%emt 0:00:05]} Nxf2 {[%emt 0:01:01]} 29. Rb6 {[%emt 0:01:04]} Ra1 {[%emt 0:07:49]} 30. Kg3 {[%emt 0:02:38]} Nd1 {[%emt 0:02:38]} 31. Rxf6 {[%emt 0:00:43]} Rxa3 {[%emt 0:00:16]} 32. Rf5 {[%emt 0:00:38]} Nxe3 {[%emt 0:03:59]} 33. Rxb5 {[%emt 0:00:15]} Rb3 {[%emt 0:00:21]} 34. Kf2 {[%emt 0:00:38]} Nc2 {[%emt 0:01:34]} 35. Rh5 {[%emt 0:00:07]} Nxb4 {[%emt 0:00:31]} 36. Rxh6 {[%emt 0:00:05]} Nd3+ {[%emt 0:00:16]} 37. Kg1 {[%emt 0:01:18]} Nf4 {[%emt 0:00:13]} 38. Rh4 {[%emt 0:00:20]} Nxg2 {[%emt 0:00:46]} 1/2-1/2

[Event "Romanian Championship Open 2025"]
[Site "Craiova"]
[Date "2025.02.15"]
[Round "1.15"]
[White "Harabor, David-Alexandru"]
[Black "Sachilaru, Alexandru"]
[Result "0-1"]
[Annotator "ChessBase"]
[ECO "B20"]
[WhiteElo "1929"]
[BlackElo "2305"]
[PlyCount "54"]
[EventDate "2025.02.12"]
[EventCountry "ROU"]
[SourceTitle "playchess.com"]
[Source "ChessBase"]
[SourceQuality "1"]
[TimeControl "40/5400+30:900+30"]

1. e4 {[%emt 0:00:09]} c5 {[%emt 0:00:13]} 2. c4 {[%emt 0:00:10]} Nc6 {[%emt 0:01:48]} 3. Nc3 {[%emt 0:00:07]} g6 {[%emt 0:00:44]} 4. Nge2 {[%emt 0:00:24]} Bg7 {[%emt 0:00:16]} 5. d3 {[%emt 0:00:15]} e6 {[%emt 0:01:53]} 6. Be3 {[%emt 0:00:32]} Nd4 {[%emt 0:01:11]} 7. Qd2 {[%emt 0:01:22]} Ne7 {[%emt 0:01:58]} 8. Bxd4 {[%emt 0:02:46]} cxd4 {[%emt 0:00:59]} 9. Nb5 {[%emt 0:00:02]} O-O {[%emt 0:02:27]} 10. Nbxd4 {[%emt 0:28:04]} d5 {[%emt 0:06:20]} 11. g3 {[%emt 0:04:10]} Qb6 {[%emt 0:01:47]} 12. Nb3 {[%emt 0:01:40]} dxc4 {[%emt 0:04:14]} 13. dxc4 {[%emt 0:00:03]} Rd8 {[%emt 0:00:54]} 14. Qc2 {[%emt 0:01:04]} Nc6 {[%emt 0:03:03]} 15. Nc3 {[%emt 0:12:17]} Nb4 {[%emt 0:02:46]} 16. Qb1 {[%emt 0:09:51]} a5 {[%emt 0:04:12]} 17. Be2 {[%emt 0:06:26]} a4 {[%emt 0:01:15]} 18. c5 {[%emt 0:05:31]} Qc6 {[%emt 0:04:45]} 19. Nd2 {[%emt 0:16:27]} a3 {[%emt 0:07:12]} 20. Nb3 {[%emt 0:03:11]} axb2 {[%emt 0:01:34]} 21. Qxb2 {[%emt 0:00:14]} Nxa2 {[%emt 0:02:44]} 22. Rxa2 {[%emt 0:01:28]} Rxa2 {[%emt 0:00:13]} 23. Qxa2 {[%emt 0:00:22]} Bxc3+ {[%emt 0:00:06]} 24. Kf1 {[%emt 0:00:08]} Qxe4 {[%emt 0:00:37]} 25. f3 {[%emt 0:00:46]} Qe3 {[%emt 0:00:12]} 26. Qc2 {[%emt 0:01:29]} e5 {[%emt 0:00:18]} 27. Qe4 {[%emt 0:03:10]} Bh3# {[%emt 0:00:15]} 0-1

[Event "Romanian Championship Open 2025"]
[Site "Craiova"]
[Date "2025.02.15"]
[Round "1.16"]
[White "Cnejev, Vladimir-Alexandru"]
[Black "Turlea, Constantin"]
[Result "1-0"]
[Annotator "ChessBase"]
[ECO "B53"]
[WhiteElo "2300"]
[BlackElo "1917"]
[PlyCount "79"]
[EventDate "2025.02.12"]
[EventCountry "ROU"]
[SourceTitle "playchess.com"]
[Source "ChessBase"]
[SourceQuality "1"]
[TimeControl "40/5400+30:900+30"]

1. e4 {[%emt 0:00:04]} c5 {[%emt 0:00:04]} 2. Nf3 {[%emt 0:00:12]} d6 {[%emt 0:00:06]} 3. d4 {[%emt 0:00:12]} cxd4 {[%emt 0:00:05]} 4. Qxd4 {[%emt 0:00:05]} Nc6 {[%emt 0:00:26]} 5. Qe3 {[%emt 0:00:08]} Nf6 {[%emt 0:00:22]} 6. Be2 {[%emt 0:06:08]} g6 {[%emt 0:03:05]} 7. c4 {[%emt 0:00:09]} Bg7 {[%emt 0:00:13]} 8. Nc3 {[%emt 0:00:05]} O-O {[%emt 0:00:47]} 9. O-O {[%emt 0:00:07]} b6 {[%emt 0:06:24]} 10. Rd1 {[%emt 0:03:46]} Bb7 {[%emt 0:02:40]} 11. h3 {[%emt 0:02:01]} Nd7 {[%emt 0:05:52]} 12. b3 {[%emt 0:11:38]} Nb4 {[%emt 0:09:07]} 13. Ne1 {[%emt 0:01:09]} Rc8 {[%emt 0:00:53]} 14. Bb2 {[%emt 0:02:35]} Qe8 {[%emt 0:15:21]} 15. Rd2 {[%emt 0:09:40]} Nf6 {[%emt 0:03:53]} 16. g3 {[%emt 0:16:58]} Rd8 {[%emt 0:16:06]} 17. Rad1 {[%emt 0:05:23]} Nc6 {[%emt 0:01:43]} 18. Bf3 {[%emt 0:11:34]} Qd7 {[%emt 0:04:15]} 19. Bg2 {[%emt 0:00:26]} Qc8 {[%emt 0:00:17]} 20. f4 {[%emt 0:04:35]} Rfe8 {[%emt 0:11:42]} 21. e5 {[%emt 0:14:35]} dxe5 {[%emt 0:00:33]} 22. fxe5 {[%emt 0:00:05]} Rxd2 {[%emt 0:01:45]} 23. Rxd2 {[%emt 0:00:02]} Nd7 {[%emt 0:08:43]} 24. e6 {[%emt 0:00:16]} Nde5 {[%emt 0:00:32]} 25. exf7+ {[%emt 0:00:38]} Nxf7 {[%emt 0:00:06]} 26. Nd5 {[%emt 0:03:47]} e5 {[%emt 0:04:37]} 27. Rf2 {[%emt 0:01:55]} Rf8 {[%emt 0:00:57]} 28. Nf6+ {[%emt 0:05:30]} Kh8 {[%emt 0:00:02]} 29. Ba3 {[%emt 0:00:21]} Rd8 {[%emt 0:01:13]} 30. Nxh7 {[%emt 0:00:44]} Qe6 {[%emt 0:02:23]} 31. Ng5 {[%emt 0:00:38]} Nxg5 {[%emt 0:00:07]} 32. Qxg5 {[%emt 0:00:00]} e4 {[%emt 0:01:18]} 33. Nc2 {[%emt 0:00:44]} Rd1+ {[%emt 0:00:45]} 34. Kh2 {[%emt 0:00:22]} Ne5 {[%emt 0:00:34]} 35. Ne3 {[%emt 0:00:54]} Re1 {[%emt 0:00:30]} 36. Bb4 {[%emt 0:00:31]} Ra1 {[%emt 0:00:29]} 37. Bc3 {[%emt 0:00:31]} Rb1 {[%emt 0:00:08]} 38. Bxe5 {[%emt 0:00:27]} Qxe5 {[%emt 0:00:52]} 39. Rf8+ {[%emt 0:00:04]} Kh7 {[%emt 0:00:32]} 40. Qxe5 {[%emt 0:00:00]} 1-0

[Event "Romanian Championship Open 2025"]
[Site "Craiova"]
[Date "2025.02.15"]
[Round "1.17"]
[White "Cimpoiasu, Dan"]
[Black "Serban, Cristian-Stefan"]
[Result "1/2-1/2"]
[Annotator "ChessBase"]
[ECO "D38"]
[WhiteElo "1878"]
[BlackElo "2295"]
[PlyCount "64"]
[EventDate "2025.02.12"]
[EventCountry "ROU"]
[SourceTitle "playchess.com"]
[Source "ChessBase"]
[SourceQuality "1"]
[TimeControl "40/5400+30:900+30"]

1. d4 {[%emt 0:00:06]} Nf6 {[%emt 0:00:15]} 2. c4 {[%emt 0:00:24]} e6 {[%emt 0:00:08]} 3. Nf3 {[%emt 0:00:50]} d5 {[%emt 0:00:15]} 4. Bg5 {[%emt 0:02:19]} Bb4+ {[%emt 0:07:31]} 5. Nc3 {[%emt 0:03:08]} h6 {[%emt 0:00:08]} 6. Bxf6 {[%emt 0:01:27]} Qxf6 {[%emt 0:00:08]} 7. e3 {[%emt 0:02:51]} O-O {[%emt 0:00:18]} 8. Rc1 {[%emt 0:01:00]} c6 {[%emt 0:06:43]} 9. Bd3 {[%emt 0:00:57]} Nd7 {[%emt 0:06:05]} 10. O-O {[%emt 0:01:08]} Rd8 {[%emt 0:14:02]} 11. Qe2 {[%emt 0:03:40]} dxc4 {[%emt 0:05:20]} 12. Bxc4 {[%emt 0:01:02]} Bxc3 {[%emt 0:10:28]} 13. Rxc3 {[%emt 0:02:48]} c5 {[%emt 0:02:48]} 14. Bb5 {[%emt 0:03:46]} cxd4 {[%emt 0:02:14]} 15. exd4 {[%emt 0:03:39]} Nb6 {[%emt 0:02:22]} 16. Ne5 {[%emt 0:06:36]} Rxd4 {[%emt 0:16:45]} 17. Rf3 {[%emt 0:04:20]} Rf4 {[%emt 0:01:23]} 18. Rxf4 {[%emt 0:01:45]} Qxf4 {[%emt 0:00:07]} 19. Rd1 {[%emt 0:00:38]} Nd5 {[%emt 0:01:08]} 20. Bc4 {[%emt 0:08:45]} b6 {[%emt 0:01:43]} 21. g3 {[%emt 0:08:57]} Qf5 {[%emt 0:07:06]} 22. Nc6 {[%emt 0:05:53]} Qf6 {[%emt 0:01:43]} 23. Bxd5 {[%emt 0:05:21]} exd5 {[%emt 0:00:19]} 24. Ne7+ {[%emt 0:03:34]} Kh8 {[%emt 0:00:55]} 25. Nxc8 {[%emt 0:05:38]} Rxc8 {[%emt 0:00:10]} 26. Rxd5 {[%emt 0:00:53]} Rd8 {[%emt 0:02:05]} 27. Rxd8+ {[%emt 0:00:30]} Qxd8 {[%emt 0:00:06]} 28. a3 {[%emt 0:01:50]} Qd5 {[%emt 0:01:00]} 29. h4 {[%emt 0:00:37]} h5 {[%emt 0:00:25]} 30. Kh2 {[%emt 0:00:45]} g6 {[%emt 0:00:25]} 31. Qe3 {[%emt 0:01:12]} Kh7 {[%emt 0:00:38]} 32. Qf4 {[%emt 0:00:56]} Kg7 {[%emt 0:11:47]} 1/2-1/2

[Event "Romanian Championship Open 2025"]
[Site "Craiova"]
[Date "2025.02.15"]
[Round "1.18"]
[White "Cosma, Ioan"]
[Black "Zlate-Ion, Matei"]
[Result "1-0"]
[Annotator "ChessBase"]
[ECO "D25"]
[WhiteElo "2286"]
[BlackElo "1845"]
[PlyCount "75"]
[EventDate "2025.02.12"]
[EventCountry "ROU"]
[SourceTitle "playchess.com"]
[Source "ChessBase"]
[SourceQuality "1"]
[TimeControl "40/5400+30:900+30"]

1. Nf3 {[%emt 0:00:17]} d5 {[%emt 0:00:07]} 2. d4 {[%emt 0:01:08]} Nf6 {[%emt 0:00:08]} 3. c4 {[%emt 0:00:06]} dxc4 {[%emt 0:03:33]} 4. e3 {[%emt 0:00:32]} g6 {[%emt 0:01:00]} 5. Bxc4 {[%emt 0:05:23]} Bg7 {[%emt 0:01:47]} 6. O-O {[%emt 0:00:56]} O-O {[%emt 0:00:15]} 7. Nc3 {[%emt 0:00:37]} a6 {[%emt 0:03:58]} 8. a4 {[%emt 0:05:50]} Bf5 {[%emt 0:18:20]} 9. Qe2 {[%emt 0:12:13]} Ne4 {[%emt 0:03:47]} 10. Rd1 {[%emt 0:00:20]} c6 {[%emt 0:01:21]} 11. a5 {[%emt 0:05:30]} Nd7 {[%emt 0:01:25]} 12. Nxe4 {[%emt 0:05:49]} Bxe4 {[%emt 0:00:24]} 13. Nd2 {[%emt 0:01:03]} Bc2 {[%emt 0:05:38]} 14. Re1 {[%emt 0:00:38]} e5 {[%emt 0:00:51]} 15. Nf1 {[%emt 0:04:09]} Be4 {[%emt 0:05:11]} 16. Ng3 {[%emt 0:01:38]} Bd5 {[%emt 0:01:22]} 17. Bxd5 {[%emt 0:02:48]} cxd5 {[%emt 0:00:58]} 18. Qf3 {[%emt 0:02:50]} e4 {[%emt 0:06:55]} 19. Qd1 {[%emt 0:00:29]} b5 {[%emt 0:04:37]} 20. axb6 {[%emt 0:05:29]} Qxb6 {[%emt 0:01:16]} 21. Qa4 {[%emt 0:00:36]} Nf6 {[%emt 0:01:30]} 22. Ne2 {[%emt 0:03:01]} h5 {[%emt 0:06:42]} 23. h3 {[%emt 0:02:27]} h4 {[%emt 0:02:26]} 24. Bd2 {[%emt 0:08:36]} g5 {[%emt 0:02:19]} 25. Bb4 {[%emt 0:01:12]} Rfb8 {[%emt 0:01:44]} 26. Rec1 {[%emt 0:03:31]} Kh7 {[%emt 0:03:58]} 27. Ba3 {[%emt 0:04:55]} g4 {[%emt 0:02:10]} 28. hxg4 {[%emt 0:05:31]} Nxg4 {[%emt 0:00:31]} 29. Qc6 {[%emt 0:01:13]} Qd8 {[%emt 0:14:48]} 30. Nf4 {[%emt 0:01:45]} Nf6 {[%emt 0:03:11]} 31. Qc7 {[%emt 0:01:20]} Rc8 {[%emt 0:03:16]} 32. Qxf7 {[%emt 0:02:09]} Qe8 {[%emt 0:00:31]} 33. Qxe8 {[%emt 0:01:05]} Rxe8 {[%emt 0:00:17]} 34. Rc7 {[%emt 0:00:27]} Kh6 {[%emt 0:00:41]} 35. Rac1 {[%emt 0:00:47]} Bf8 {[%emt 0:00:29]} 36. R1c6 {[%emt 0:00:25]} Bxa3 {[%emt 0:00:23]} 37. Rxf6+ {[%emt 0:00:12]} Kg5 {[%emt 0:00:09]} 38. Rg6+ {[%emt 0:00:09]} 1-0

[Event "Romanian Championship Open 2025"]
[Site "Craiova"]
[Date "2025.02.15"]
[Round "1.19"]
[White "Vlagiu, Alexandru-Andrei"]
[Black "Coicev, Matei-Andrei"]
[Result "1/2-1/2"]
[Annotator "ChessBase"]
[ECO "E07"]
[WhiteElo "1837"]
[BlackElo "2286"]
[PlyCount "152"]
[EventDate "2025.02.12"]
[EventCountry "ROU"]
[SourceTitle "playchess.com"]
[Source "ChessBase"]
[SourceQuality "1"]
[TimeControl "40/5400+30:900+30"]

1. Nf3 {[%emt 0:00:03]} Nf6 {[%emt 0:00:23]} 2. g3 {[%emt 0:00:12]} d5 {[%emt 0:00:23]} 3. Bg2 {[%emt 0:00:30]} e6 {[%emt 0:00:10]} 4. O-O {[%emt 0:01:10]} Be7 {[%emt 0:00:33]} 5. c4 {[%emt 0:05:34]} O-O {[%emt 0:01:02]} 6. d4 {[%emt 0:04:17]} c6 {[%emt 0:00:28]} 7. Nc3 {[%emt 0:01:00]} Nbd7 {[%emt 0:02:17]} 8. b3 {[%emt 0:01:41]} b6 {[%emt 0:01:05]} 9. Bb2 {[%emt 0:03:51]} Ba6 {[%emt 0:01:45]} 10. Rc1 {[%emt 0:02:27]} Rc8 {[%emt 0:01:37]} 11. Re1 {[%emt 0:01:55]} dxc4 {[%emt 0:03:04]} 12. e4 {[%emt 0:04:27]} cxb3 {[%emt 0:01:52]} 13. axb3 {[%emt 0:01:36]} Bb7 {[%emt 0:01:17]} 14. Qd3 {[%emt 0:03:51]} Re8 {[%emt 0:02:16]} 15. Red1 {[%emt 0:04:24]} c5 {[%emt 0:02:54]} 16. d5 {[%emt 0:07:35]} Bf8 {[%emt 0:06:41]} 17. dxe6 {[%emt 0:04:55]} fxe6 {[%emt 0:06:45]} 18. Qe3 {[%emt 0:03:00]} Qe7 {[%emt 0:02:20]} 19. Nb5 {[%emt 0:03:25]} Nxe4 {[%emt 0:06:34]} 20. Nd2 {[%emt 0:00:59]} a6 {[%emt 0:03:36]} 21. Bxe4 {[%emt 0:01:44]} Bxe4 {[%emt 0:00:28]} 22. Nxe4 {[%emt 0:00:09]} axb5 {[%emt 0:00:22]} 23. Nd6 {[%emt 0:00:13]} Nf6 {[%emt 0:02:02]} 24. Bxf6 {[%emt 0:04:05]} Qxf6 {[%emt 0:00:26]} 25. Nxe8 {[%emt 0:01:15]} Rxe8 {[%emt 0:00:02]} 26. Qe2 {[%emt 0:01:38]} c4 {[%emt 0:01:03]} 27. bxc4 {[%emt 0:02:49]} b4 {[%emt 0:00:15]} 28. Rd7 {[%emt 0:01:58]} Bc5 {[%emt 0:00:45]} 29. Kg2 {[%emt 0:01:26]} Rf8 {[%emt 0:01:19]} 30. f4 {[%emt 0:02:18]} Ra8 {[%emt 0:03:13]} 31. Re1 {[%emt 0:03:49]} b3 {[%emt 0:06:50]} 32. Qxe6+ {[%emt 0:01:14]} Qxe6 {[%emt 0:00:12]} 33. Rxe6 {[%emt 0:00:03]} Ra2+ {[%emt 0:01:20]} 34. Kh3 {[%emt 0:02:20]} h6 {[%emt 0:01:20]} 35. Re8+ {[%emt 0:01:20]} Kh7 {[%emt 0:00:14]} 36. Re1 {[%emt 0:00:58]} Rc2 {[%emt 0:01:23]} 37. Rb1 {[%emt 0:01:01]} b2 {[%emt 0:00:55]} 38. f5 {[%emt 0:03:30]} Kg8 {[%emt 0:01:25]} 39. Kg4 {[%emt 0:01:55]} Rxh2 {[%emt 0:01:32]} 40. Kf4 {[%emt 0:00:00]} Rc2 {[%emt 0:00:00]} 41. Ke5 {[%emt 0:03:19]} Bb4 {[%emt 0:13:54]} 42. Rd3 {[%emt 0:02:04]} Rxc4 {[%emt 0:06:35]} 43. Kd5 {[%emt 0:01:59]} Rc5+ {[%emt 0:01:02]} 44. Kd4 {[%emt 0:00:29]} Rxf5 {[%emt 0:00:35]} 45. Rxb2 {[%emt 0:00:08]} Bc5+ {[%emt 0:00:28]} 46. Ke4 {[%emt 0:00:48]} Rf6 {[%emt 0:00:27]} 47. Rd7 {[%emt 0:00:24]} Kh7 {[%emt 0:03:55]} 48. Ra2 {[%emt 0:02:22]} Rg6 {[%emt 0:01:45]} 49. Kf3 {[%emt 0:01:10]} Bd6 {[%emt 0:00:39]} 50. g4 {[%emt 0:01:37]} Rf6+ {[%emt 0:01:37]} 51. Ke4 {[%emt 0:01:53]} Kg6 {[%emt 0:03:00]} 52. Raa7 {[%emt 0:03:16]} Bf8 {[%emt 0:00:19]} 53. Rab7 {[%emt 0:00:31]} Kg5 {[%emt 0:01:42]} 54. Rf7 {[%emt 0:01:07]} Kxg4 {[%emt 0:00:46]} 55. Rxf6 {[%emt 0:00:13]} gxf6 {[%emt 0:00:02]} 56. Rf7 {[%emt 0:00:14]} Bc5 {[%emt 0:00:22]} 57. Rxf6 {[%emt 0:00:07]} Kg5 {[%emt 0:01:07]} 58. Rf7 {[%emt 0:00:51]} h5 {[%emt 0:00:47]} 59. Kf3 {[%emt 0:00:13]} Kg6 {[%emt 0:01:20]} 60. Rb7 {[%emt 0:00:46]} Kg5 {[%emt 0:01:13]} 61. Kg2 {[%emt 0:00:06]} Kh4 {[%emt 0:02:02]} 62. Kh1 {[%emt 0:00:12]} Kg4 {[%emt 0:00:54]} 63. Kg2 {[%emt 0:00:17]} Bd4 {[%emt 0:01:19]} 64. Kh1 {[%emt 0:00:09]} h4 {[%emt 0:01:59]} 65. Kg2 {[%emt 0:00:01]} Bc5 {[%emt 0:00:34]} 66. Kh1 {[%emt 0:00:07]} Kf3 {[%emt 0:00:06]} 67. Rb8 {[%emt 0:00:21]} Bd4 {[%emt 0:00:31]} 68. Rb7 {[%emt 0:00:24]} Be3 {[%emt 0:00:59]} 69. Rb8 {[%emt 0:00:12]} Ke4 {[%emt 0:00:14]} 70. Kg2 {[%emt 0:00:08]} Kd5 {[%emt 0:00:15]} 71. Rxb6 {[%emt 0:00:38]} Bxb6 {[%emt 0:00:06]} 72. Kh1 {[%emt 0:00:04]} Ke4 {[%emt 0:00:06]} 73. Kg2 {[%emt 0:00:07]} Kf4 {[%emt 0:00:04]} 74. Kh1 {[%emt 0:00:08]} Kf3 {[%emt 0:00:12]} 75. Kh2 {[%emt 0:00:06]} Kg4 {[%emt 0:00:04]} 76. Kh1 {[%emt 0:00:05]} Kh3 {[%emt 0:00:01]} 1/2-1/2